Workbook

Sheet Relevés
A2: Pression Mini /Maxi en hPa | G2: Ressentie et | K2: Température Mini / Maxi en C° | Q2: Vent en Km/h | AF2: Humidité en % | AK2: Hauteur de pluie | AO2: Temps de précipitations | AW2: Date | AX2: Time | AY2: Pressure_Absolute | AZ2: Pressure_Relative | BA2: Temperature_Indoor | BB2: Humidity_Indoor | BC2: DewPoint_Indor | BD2: Temperature_Outdoor | BE2: Humidity_Outdoor | BF2: DewPoint_Outdor | BG2: Wind_Chill | BH2: Wind_Direction | BI2: Wind_Gust | BJ2: Wind_Speed | BK2: Rainfall_Absolute | BL2: Rainfall_Relative | BM2: Rainfall_1h | BN2: Rainfall_24h | BO2: Cloud_Base | BP2: Humidex | BQ2: SolarRadiations | BR2: UVIndex | BS2: Temperature_2 | BT2: Humidity_2 | BU2: Temperature_3 | BV2: Humidity_3 | BW2: Temperature_4 | BX2: Humidity_4 | BY2: Temperature_5 | BZ2: Humidity_5 | CA2: Temperature_6 | CB2: Humidity_6 | CC2: Temperature_7 | CD2: Humidity_7 | CE2: Temperature_8 | CF2: Humidity_8 | CG2: Temperature_9 | CH2: Humidity_9 | CI2: Temperature_10 | CJ2: Humidity_10 | CK2: DewPoint_2 | CL2: DewPoint_3 | CM2: DewPoint_4 | CN2: DewPoint_5 | CO2: DewPoint_6 | CP2: DewPoint_7 | CQ2: DewPoint_8 | CR2: DewPoint_9 | CS2: DewPoint_10 | CT2: Heatindex_0 | CU2: Heatindex_1 | CV2: Heatindex_2 | CW2: Heatindex_3 | CX2: Heatindex_4 | CY2: Heatindex_5 | CZ2: Heatindex_6 | DA2: Heatindex_7 | DB2: Heatindex_8 | DC2: Heatindex_9 | DD2: Heatindex_10 | DE2: weather | DF2: forecast
A3: mini | C3: heure | D3: maxi | F3: heure | G3: mini | I3: heure | K3: mini | M3: heure | N3: maxi | P3: heure | Q3: maxi | S3: Heure | U3: Moyenne | W3: Sens | Y3: Sens | AA3: <2 | AB3: Mini | AD3: Heure | AF3: Maxi | AH3: Heure | AJ3: Moy | AK3: mm | AM3: Heure | AO3: AM | AQ3: AM | AS3: AP | AU3: AP | AW3: 1 | AX3: 2 | AY3: 3 | AZ3: 4 | BA3: 5 | BB3: 6 | BC3: 7 | BD3: 8 | BE3: 9 | BF3: 10 | BG3: 11 | BH3: 12 | BI3: 13 | BJ3: 14 | BK3: 15 | BL3: 16 | BM3: 17 | BN3: 18 | BO3: 19 | BP3: 20 | BQ3: 21 | BR3: 22 | BS3: 23 | BT3: 24 | BU3: 25 | BV3: 26 | BW3: 27 | BX3: 28 | BY3: 29 | BZ3: 30 | CA3: 31 | CB3: 32 | CC3: 33 | CD3: 34 | CE3: 35 | CF3: 36 | CG3: 37 | CH3: 38 | CI3: 39 | CJ3: 40 | CK3: 41 | CL3: 42 | CM3: 43 | CN3: 44 | CO3: 45 | CP3: 46 | CQ3: 47 | CR3: 48 | CS3: 49 | CT3: 50 | CU3: 51 | CV3: 52 | CW3: 53 | CX3: 54 | CY3: 55 | CZ3: 56 | DA3: 57 | DB3: 58 | DC3: 59 | DD3: 60 | DE3: 61 | DF3: 62
AO4: 0 à 7h | AQ4: 7 à 12h | AS4: 12 à 19h | AU4: 19h à 24h | AW4: Date | AX4: Time | AZ4: Pression relative | BD4: T° Soleil | BE4: Humidité Noire | BG4: Froid | BH4: Direction | BI4: Rafale | BJ4: Vitesse vent | BK4: Pluie Cumulée | BL4: Pluie relative | BM4: Pluie / H | BN4: Pluie / 24h | BO4: Base de nuage | BP4: Humidex | BQ4: Radiations solaire | BR4: Index UV | BS4: T° Extérieure | BT4: H% Extérieure | BU4: T° véranda | BV4: H% Véranda | CK4: P de Rosée
A5: =MIN(A9:A1448) -> 1018 | C5: =VLOOKUP($A5,$A$9:$K$1448,11,0) -> 00:40:00 | D5: =MAX(A9:A1448) -> 1020 | F5: =VLOOKUP($D5,$A$9:$K$1448,11,0) -> 02:25:00 | G5: =MIN(D9:D1448) -> -6.534365239 | I5: =VLOOKUP($G5,$D$9:$K$1448,8,0) -> 17:56:00 | K5: =MIN($B$9:$B$1448) -> 15.9 | M5: =VLOOKUP($K5,$B$9:$K$1448,10,0) -> 05:23:00 | N5: =MAX($B$9:$B$1448) -> 26.2 | P5: =VLOOKUP($N5,$B$9:$K$1448,10,0) -> 13:11:00 | Q5: =MAX($F$9:$F$1448) -> 42.8 | S5: =VLOOKUP($Q5,$F$9:$K$1448,6,0) -> 17:56:00 | U5: =AVERAGE(G9:G1448) -> 8.415 | Y5: ONO | AA5: =SUM(P1450/60/1440) -> 05:01:00 | AB5: =MIN(C9:C1448) -> 54 | AD5: =VLOOKUP($AB5,$C$9:$K$1438,9,0) -> 11:44:00 | AF5: =MAX(C9:C1448) -> 94 | AH5: =VLOOKUP($AF5,$C$9:$K$1448,9,0) -> 00:00:00 | AJ5: =AVERAGE(C9:C1438) -> 76.05314685 | AK5: =H1450 -> 12.446 | AM5: =(Q1450/60)/1440 -> 03:31:00 | AO5: =AO6+AQ6 -> 03:31:00 | AS5: =AS6+AU6 -> 00:00:00 | CK5: Extérieur | CU5: Indice de chaleur | DE5: Station | DF5: Prévisions
AK6: =I1450 -> 12.446 | AO6: =SUM(Q9:Q428)/60/1440 -> 03:31:00 | AQ6: =SUM(Q429:Q728)/60/1440 -> 00:00:00 | AS6: =SUM(Q729:Q1148)/60/1440 -> 00:00:00 | AU6: =SUM(Q1148:Q1448)/60/1440 -> 00:00:00 | CK6: Sonde 2
A7: 1 | B7: 2 | C7: 3 | D7: 4 | E7: 5 | F7: 6 | G7: 7 | H7: 8 | I7: 9 | J7: 10 | K7: 11 | L7: 12 | M7: 13 | N7: 14 | O7: 15 | P7: 16 | Q7: 17 | R7: 18
A8: Pression | B8: T° Ext | C8: H% Ext | D8: Froid | E8: Sens | F8: Rafale | G8: Vent | H8: Pluie Ab | I8: Pluie R | J8: Pluie 1h | K8: Heures | L8: Date | M8: Outdoor | P8: Vent | Q8: Pluie
A9: 1019 | B9: 17.2 | C9: 94 | D9: -3.127656757 | E9: 135 | F9: 9.6 | G9: 9.6 | H9: 56.134 | I9: 0 | J9: 0 | K9: 00:00:00 | L9: 20180615 | P9: =IF(G9<2,60,"") ->  | Q9: =IF(J9>0,60,"") ->  | Y9: N | AC9: 0 | AD9: 0
A10: 1019 | B10: 17.2 | C10: 92 | D10: 0.000694444 | E10: 135 | F10: 0 | G10: 8.4 | H10: 56.134 | I10: 0 | J10: 0 | K10: 00:01:00 | P10: =IF(G10<2,60,"") ->  | Q10: =IF(J10>0,60,"") ->  | Y10: N | AB10: 0 | AC10: 11 | AD10: 22
A11: 1019 | B11: 17.2 | C11: 92 | D11: 0.001388889 | E11: 135 | F11: 0 | G11: 8.4 | H11: 56.134 | I11: 0 | J11: 0 | K11: 00:02:00 | P11: =IF(G11<2,60,"") ->  | Q11: =IF(J11>0,60,"") ->  | Y11: NNE | AB11: 22.5 | AC11: =AB11+$AC$10 -> 33.5 | AD11: 45
A12: 1019 | B12: 17.2 | C12: 92 | D12: 0.002083333 | E12: 135 | F12: 0 | G12: 5.2 | H12: 56.134 | I12: 0 | J12: 0 | K12: 00:03:00 | Y12: NE | AB12: 45 | AC12: 56 | AD12: 67
A13: 1019 | B13: 17.2 | C13: 92 | D13: 0.002777778 | E13: 135 | F13: 0 | G13: 2 | H13: 56.134 | I13: 0 | J13: 0 | K13: 00:04:00 | Y13: ENE | AB13: 67.5 | AC13: 78.5 | AD13: 90
A14: 1019 | B14: 17.2 | C14: 92 | D14: 0.003472222 | E14: 135 | F14: 0 | G14: 2 | H14: 56.134 | I14: 0 | J14: 0 | K14: 00:05:00 | Y14: E | AB14: 90 | AC14: 101 | AD14: 112
A15: 1019 | B15: 17.2 | C15: 92 | D15: 0.004166667 | E15: 202 | F15: 0 | G15: 6.4 | H15: 56.134 | I15: 0 | J15: 0 | K15: 00:06:00 | Y15: ESE | AB15: 112.5 | AC15: 123.5 | AD15: 135
A16: 1019 | B16: 17.2 | C16: 92 | D16: 0.004861111 | E16: 202 | F16: 0 | G16: 6.4 | H16: 56.134 | I16: 0 | J16: 0 | K16: 00:07:00 | Y16: SSE | AB16: 135 | AC16: 146 | AD16: 157
A17: 1019 | B17: 17.2 | C17: 92 | D17: 0.005555556 | E17: 202 | F17: 0 | G17: 6.4 | H17: 56.134 | I17: 0 | J17: 0 | K17: 00:08:00 | Y17: SE | AB17: 157.5 | AC17: 168.5 | AD17: 180
A18: 1019 | B18: 17.2 | C18: 92 | D18: -1.771427748 | E18: 157 | F18: 5.6 | G18: 2.8 | H18: 56.134 | I18: 0 | J18: 0 | K18: 00:09:00 | Y18: S | AB18: 180 | AC18: 191 | AD18: 202
A19: 1019 | B19: 17.2 | C19: 92 | D19: -1.770633414 | E19: 157 | F19: 5.6 | G19: 2.8 | H19: 56.134 | I19: 0 | J19: 0 | K19: 00:10:00 | Y19: SSO | AB19: 202.5 | AC19: 213.5 | AD19: 225
A20: 1019 | B20: 17.2 | C20: 92 | D20: -2.242324932 | E20: 90 | F20: 6.8 | G20: 6.4 | H20: 56.134 | I20: 0 | J20: 0 | K20: 00:11:00 | Y20: SO | AB20: 225 | AC20: 236 | AD20: 247
A21: 1019 | B21: 17.2 | C21: 92 | D21: -2.518870735 | E21: 112 | F21: 7.6 | G21: 6.4 | H21: 57.15 | I21: 1.016 | J21: 1.016 | K21: 00:12:00 | Q21: 60 | Y21: OSO | AB21: 247.5 | AC21: 258.5 | AD21: 270
A22: 1019 | B22: 17.2 | C22: 92 | D22: -2.518058238 | E22: 112 | F22: 7.6 | G22: 6.4 | H22: 57.15 | I22: 0 | J22: 1.016 | K22: 00:13:00 | Q22: 60 | Y22: O | AB22: 270 | AC22: 281 | AD22: 292
A23: 1019 | B23: 17.2 | C23: 92 | D23: -2.517245741 | E23: 112 | F23: 7.6 | G23: 6.4 | H23: 57.15 | I23: 0 | J23: 1.016 | K23: 00:14:00 | Q23: 60 | Y23: ONO | AB23: 292.5 | AC23: 303.5 | AD23: 315
A24: 1019 | B24: 17.2 | C24: 92 | D24: -2.516433244 | E24: 112 | F24: 7.6 | G24: 6.4 | H24: 57.15 | I24: 0 | J24: 1.016 | K24: 00:15:00 | Q24: 60 | Y24: NO | AB24: 315 | AC24: 326 | AD24: 337
A25: 1019 | B25: 17.2 | C25: 92 | D25: 0.011111111 | E25: 112 | F25: 0 | G25: 0 | H25: 57.15 | I25: 0 | J25: 1.016 | K25: 00:16:00 | P25: 60 | Q25: 60 | Y25: NNO | AB25: 337.5 | AC25: 348.5 | AD25: 349
A26: 1019 | B26: 17.2 | C26: 92 | D26: -3.424086808 | E26: 157 | F26: 10.8 | G26: 3.6 | H26: 57.15 | I26: 0 | J26: 1.016 | K26: 00:17:00 | Q26: 60 | Y26: N | AB26: 349 | AC26: 360
A27: 1019 | B27: 17.3 | C27: 92 | D27: -2.236684482 | E27: 157 | F27: 6.8 | G27: 6.8 | H27: 57.15 | I27: 0 | J27: 1.016 | K27: 00:18:00 | Q27: 60 | Z27: =INDEX($Y$9:$Y$26,IF(ISNA(MATCH($Z$29,$AC$9:$AC$26,0)),MATCH($Z$29,$AC$9:$AC$26,1)+1,MATCH($Z$29,$AC$9:$AC$26,0)),1) -> SSO
A28: 1019 | B28: 17.2 | C28: 92 | D28: -2.235878704 | E28: 157 | F28: 6.8 | G28: 12 | H28: 57.15 | I28: 0 | J28: 1.016 | K28: 00:19:00 | Q28: 60 | Y28: =SUM(Y31:Y46) -> 1 | Z28: =MAX(Y31:Y46) -> 0.3085476025 | AA28: =SUM(AA31:AA46) -> 1439
A29: 1019 | B29: 17.2 | C29: 92 | D29: 0.013888889 | E29: 157 | F29: 0 | G29: 2 | H29: 57.15 | I29: 0 | J29: 1.016 | K29: 00:20:00 | Q29: 60 | Z29: =VLOOKUP(Z28,Y31:Z46,Z30,0) -> 202
A30: 1019 | B30: 17.2 | C30: 92 | D30: -2.999539917 | E30: 157 | F30: 9.2 | G30: 2.4 | H30: 57.15 | I30: 0 | J30: 1.016 | K30: 00:21:00 | Q30: 60 | Z30: 2
A31: 1019 | B31: 17.2 | C31: 92 | D31: -2.998715597 | E31: 157 | F31: 9.2 | G31: 6 | H31: 57.15 | I31: 0 | J31: 1.016 | K31: 00:22:00 | Q31: 60 | Y31: =AA31/$AA$28 -> 0.001389854065 | Z31: 0 | AA31: =COUNTIF($E$10:$E$1449,Z31) -> 2
A32: 1019 | B32: 17.3 | C32: 92 | D32: -4.043871875 | E32: 112 | F32: 13.6 | G32: 10 | H32: 57.15 | I32: 0 | J32: 1.016 | K32: 00:23:00 | Q32: 60 | Y32: =AA32/$AA$28 -> 0.001389854065 | Z32: 22 | AA32: =COUNTIF($E$10:$E$1449,Z32) -> 2
A33: 1019 | B33: 17.2 | C33: 92 | D33: -2.638660222 | E33: 90 | F33: 8 | G33: 8 | H33: 57.15 | I33: 0 | J33: 1.016 | K33: 00:24:00 | Q33: 60 | Y33: 0.0006949270327 | Z33: 45 | AA33: 1
A34: 1019 | B34: 17.3 | C34: 92 | D34: -3.417410598 | E34: 157 | F34: 10.8 | G34: 6 | H34: 57.15 | I34: 0 | J34: 1.016 | K34: 00:25:00 | Q34: 60 | Y34: 0.007644197359 | Z34: 67 | AA34: 11
A35: 1019 | B35: 17.3 | C35: 92 | D35: -1.379007389 | E35: 180 | F35: 4.4 | G35: 7.6 | H35: 57.15 | I35: 0 | J35: 1.016 | K35: 00:26:00 | Q35: 60 | Y35: 0.01181375956 | Z35: 90 | AA35: 17
A36: 1019 | B36: 17.3 | C36: 92 | D36: -2.371294248 | E36: 135 | F36: 7.2 | G36: 6.4 | H36: 57.15 | I36: 0 | J36: 1.016 | K36: 00:27:00 | Q36: 60 | Y36: 0.04239054899 | Z36: 112 | AA36: 61
A37: 1019 | B37: 17.3 | C37: 92 | D37: 0.019444444 | E37: 157 | F37: 0 | G37: 0 | H37: 57.15 | I37: 0 | J37: 1.016 | K37: 00:28:00 | P37: 60 | Q37: 60 | Y37: 0.09798471161 | Z37: 135 | AA37: 141
A38: 1019 | B38: 17.3 | C38: 92 | D38: 0.020138889 | E38: 135 | F38: 0 | G38: 0 | H38: 57.15 | I38: 0 | J38: 1.016 | K38: 00:29:00 | P38: 60 | Q38: 60 | Y38: 0.2633773454 | Z38: 157 | AA38: 379
A39: 1019 | B39: 17.3 | C39: 92 | D39: -2.227015139 | E39: 157 | F39: 6.8 | G39: 5.6 | H39: 57.15 | I39: 0 | J39: 1.016 | K39: 00:30:00 | Q39: 60 | Y39: 0.1445448228 | Z39: 180 | AA39: 208
A40: 1019 | B40: 17.3 | C40: 92 | D40: -2.876453367 | E40: 157 | F40: 8.8 | G40: 8 | H40: 57.15 | I40: 0 | J40: 1.016 | K40: 00:31:00 | Q40: 60 | Y40: 0.3085476025 | Z40: 202 | AA40: 444
A41: 1019 | B41: 17.3 | C41: 92 | D41: -2.225403582 | E41: 135 | F41: 6.8 | G41: 6 | H41: 57.15 | I41: 0 | J41: 1.016 | K41: 00:32:00 | Q41: 60 | Y41: 0.01806810285 | Z41: 225 | AA41: 26
A42: 1019 | B42: 17.3 | C42: 92 | D42: -3.100365625 | E42: 157 | F42: 9.6 | G42: 6.8 | H42: 57.15 | I42: 0 | J42: 1.016 | K42: 00:33:00 | Q42: 60 | Y42: 0.02223766505 | Z42: 247 | AA42: 32
A43: 1019 | B43: 17.3 | C43: 92 | D43: 0.023611111 | E43: 135 | F43: 0 | G43: 6 | H43: 57.15 | I43: 0 | J43: 1.016 | K43: 00:34:00 | Q43: 60 | Y43: 0.02015288395 | Z43: 270 | AA43: 29
A44: 1019 | B44: 17.3 | C44: 92 | D44: -2.222986247 | E44: 157 | F44: 6.8 | G44: 4 | H44: 58.166 | I44: 1.016 | J44: 2.032 | K44: 00:35:00 | Q44: 60 | Y44: 0.02779708131 | Z44: 292 | AA44: 40
A45: 1019 | B45: 17.3 | C45: 92 | D45: 0.025 | E45: 157 | F45: 0 | G45: 2 | H45: 58.166 | I45: 0 | J45: 2.032 | K45: 00:36:00 | Q45: 60 | Y45: 0.02432244614 | Z45: 315 | AA45: 35
A46: 1019 | B46: 17.3 | C46: 92 | D46: -2.871524143 | E46: 180 | F46: 8.8 | G46: 10 | H46: 58.166 | I46: 0 | J46: 2.032 | K46: 00:37:00 | Q46: 60 | Y46: 0.007644197359 | Z46: 337 | AA46: 11
A47: 1019 | B47: 17.3 | C47: 92 | D47: -1.748392081 | E47: 180 | F47: 5.6 | G47: 8.4 | H47: 58.166 | I47: 0 | J47: 2.032 | K47: 00:38:00 | Q47: 60
A48: 1019 | B48: 17.3 | C48: 92 | D48: -1.747597748 | E48: 180 | F48: 5.6 | G48: 8.4 | H48: 58.166 | I48: 0 | J48: 2.032 | K48: 00:39:00 | Q48: 60
A49: 1018 | B49: 17.3 | C49: 92 | D49: -2.218957354 | E49: 135 | F49: 6.8 | G49: 5.6 | H49: 58.166 | I49: 0 | J49: 2.032 | K49: 00:40:00 | Q49: 60
A50: 1018 | B50: 17.3 | C50: 92 | D50: -3.501059165 | E50: 135 | F50: 11.2 | G50: 4.8 | H50: 58.166 | I50: 0 | J50: 2.032 | K50: 00:41:00 | Q50: 60
A51: 1018 | B51: 17.3 | C51: 92 | D51: -3.500222287 | E51: 135 | F51: 11.2 | G51: 4.8 | H51: 58.166 | I51: 0 | J51: 2.032 | K51: 00:42:00 | Q51: 60
A52: 1018 | B52: 17.3 | C52: 92 | D52: -3.49938541 | E52: 135 | F52: 11.2 | G52: 4.8 | H52: 58.166 | I52: 0 | J52: 2.032 | K52: 00:43:00 | Q52: 60
A53: 1018 | B53: 17.3 | C53: 92 | D53: -3.498548532 | E53: 135 | F53: 11.2 | G53: 4.8 | H53: 58.166 | I53: 0 | J53: 2.032 | K53: 00:44:00 | Q53: 60
A54: 1018 | B54: 17.3 | C54: 92 | D54: -1.36425125 | E54: 157 | F54: 4.4 | G54: 3.2 | H54: 58.166 | I54: 0 | J54: 2.032 | K54: 00:45:00 | Q54: 60
A55: 1018 | B55: 17.4 | C55: 92 | D55: -2.214122682 | E55: 112 | F55: 6.8 | G55: 5.6 | H55: 58.166 | I55: 0 | J55: 2.032 | K55: 00:46:00 | Q55: 60
A56: 1018 | B56: 17.4 | C56: 92 | D56: -2.213316904 | E56: 112 | F56: 6.8 | G56: 5.6 | H56: 58.166 | I56: 0 | J56: 2.032 | K56: 00:47:00 | Q56: 60
A57: 1018 | B57: 17.4 | C57: 92 | D57: -3.680747916 | E57: 157 | F57: 12 | G57: 5.6 | H57: 58.166 | I57: 0 | J57: 2.032 | K57: 00:48:00 | Q57: 60
A58: 1018 | B58: 17.4 | C58: 92 | D58: -3.67990654 | E58: 157 | F58: 12 | G58: 5.6 | H58: 58.166 | I58: 0 | J58: 2.032 | K58: 00:49:00 | Q58: 60
A59: 1018 | B59: 17.4 | C59: 92 | D59: -1.904921151 | E59: 135 | F59: 6 | G59: 4.8 | H59: 58.166 | I59: 0 | J59: 2.032 | K59: 00:50:00 | Q59: 60
A60: 1018 | B60: 17.4 | C60: 92 | D60: -2.487183347 | E60: 157 | F60: 7.6 | G60: 6.4 | H60: 58.166 | I60: 0 | J60: 2.032 | K60: 00:51:00 | Q60: 60
A61: 1018 | B61: 17.4 | C61: 92 | D61: -1.903324432 | E61: 157 | F61: 6 | G61: 6.4 | H61: 58.166 | I61: 0 | J61: 2.032 | K61: 00:52:00 | Q61: 60
A62: 1018 | B62: 17.4 | C62: 92 | D62: 0.036805556 | E62: 135 | F62: 0 | G62: 4.4 | H62: 59.182 | I62: 1.016 | J62: 3.048 | K62: 00:53:00 | Q62: 60
A63: 1018 | B63: 17.4 | C63: 92 | D63: 0.0375 | E63: 135 | F63: 0 | G63: 4.4 | H63: 59.182 | I63: 0 | J63: 3.048 | K63: 00:54:00 | Q63: 60
A64: 1019 | B64: 17.4 | C64: 92 | D64: 0.038194444 | E64: 135 | F64: 0 | G64: 1.6 | H64: 59.182 | I64: 0 | J64: 3.048 | K64: 00:55:00 | P64: 60 | Q64: 60
A65: 1019 | B65: 17.4 | C65: 92 | D65: 0.038888889 | E65: 135 | F65: 0 | G65: 0 | H65: 59.182 | I65: 0 | J65: 3.048 | K65: 00:56:00 | P65: 60 | Q65: 60
A66: 1019 | B66: 17.4 | C66: 92 | D66: 0.039583333 | E66: 135 | F66: 0 | G66: 0 | H66: 59.182 | I66: 0 | J66: 3.048 | K66: 00:57:00 | P66: 60 | Q66: 60
A67: 1019 | B67: 17.4 | C67: 92 | D67: 0.040277778 | E67: 135 | F67: 0 | G67: 0 | H67: 59.182 | I67: 0 | J67: 3.048 | K67: 00:58:00 | P67: 60 | Q67: 60
A68: 1019 | B68: 17.4 | C68: 92 | D68: 0.040972222 | E68: 135 | F68: 0 | G68: 0 | H68: 59.182 | I68: 0 | J68: 3.048 | K68: 00:59:00 | P68: 60 | Q68: 60
A69: 1019 | B69: 17.4 | C69: 92 | D69: -1.352601667 | E69: 135 | F69: 4.4 | G69: 2.8 | H69: 59.182 | I69: 0 | J69: 3.048 | K69: 01:00:00 | Q69: 60
A70: 1019 | B70: 17.4 | C70: 92 | D70: 0.042361111 | E70: 135 | F70: 0 | G70: 1.6 | H70: 59.182 | I70: 0 | J70: 0 | K70: 01:01:00 | P70: 60
A71: 1019 | B71: 17.4 | C71: 92 | D71: 0.043055556 | E71: 135 | F71: 0 | G71: 1.6 | H71: 59.182 | I71: 0 | J71: 0 | K71: 01:02:00 | P71: 60
A72: 1019 | B72: 17.4 | C72: 92 | D72: 0.04375 | E72: 112 | F72: 0 | G72: 2.8 | H72: 59.182 | I72: 0 | J72: 0 | K72: 01:03:00
A73: 1019 | B73: 17.4 | C73: 92 | D73: 0.044444444 | E73: 112 | F73: 0 | G73: 0 | H73: 60.198 | I73: 1.016 | J73: 1.016 | K73: 01:04:00 | P73: 60 | Q73: 60
A74: 1019 | B74: 17.5 | C74: 92 | D74: 0.045138889 | E74: 112 | F74: 0 | G74: 0 | H74: 60.198 | I74: 0 | J74: 1.016 | K74: 01:05:00 | P74: 60 | Q74: 60
A75: 1019 | B75: 17.5 | C75: 92 | D75: -2.049094457 | E75: 157 | F75: 6.4 | G75: 6 | H75: 60.198 | I75: 0 | J75: 1.016 | K75: 01:06:00 | P75: =IF(G75<2,60,"") ->  | Q75: =IF(J75>0,60,"") -> 60
A76: 1019 | B76: 17.5 | C76: 92 | D76: -3.282356327 | E76: 157 | F76: 10.4 | G76: 8.4 | H76: 60.198 | I76: 0 | J76: 1.016 | K76: 01:07:00 | Q76: 60
A77: 1019 | B77: 17.5 | C77: 92 | D77: -2.602772237 | E77: 157 | F77: 8 | G77: 7.2 | H77: 60.198 | I77: 0 | J77: 1.016 | K77: 01:08:00 | Q77: 60
A78: 1019 | B78: 17.5 | C78: 92 | D78: -2.601956601 | E78: 157 | F78: 8 | G78: 7.2 | H78: 60.198 | I78: 0 | J78: 1.016 | K78: 01:09:00 | Q78: 60
A79: 1018 | B79: 17.5 | C79: 92 | D79: 0.048611111 | E79: 157 | F79: 0 | G79: 5.6 | H79: 60.198 | I79: 0 | J79: 1.016 | K79: 01:10:00 | Q79: 60
A80: 1018 | B80: 17.5 | C80: 92 | D80: 0.049305556 | E80: 157 | F80: 0 | G80: 5.6 | H80: 60.198 | I80: 0 | J80: 1.016 | K80: 01:11:00 | Q80: 60
A81: 1018 | B81: 17.5 | C81: 92 | D81: -2.334879515 | E81: 135 | F81: 7.2 | G81: 1.2 | H81: 60.198 | I81: 0 | J81: 1.016 | K81: 01:12:00 | P81: 60 | Q81: 60
A82: 1018 | B82: 17.5 | C82: 92 | D82: -1.720590415 | E82: 157 | F82: 5.6 | G82: 4.4 | H82: 60.198 | I82: 0 | J82: 1.016 | K82: 01:13:00 | Q82: 60
A83: 1018 | B83: 17.5 | C83: 92 | D83: -1.719796081 | E83: 157 | F83: 5.6 | G83: 4.4 | H83: 60.198 | I83: 0 | J83: 1.016 | K83: 01:14:00 | Q83: 60
A84: 1018 | B84: 17.5 | C84: 92 | D84: 0.052083333 | E84: 157 | F84: 0 | G84: 0.4 | H84: 60.198 | I84: 0 | J84: 1.016 | K84: 01:15:00 | P84: 60 | Q84: 60
A85: 1018 | B85: 17.5 | C85: 92 | D85: 0.052777778 | E85: 157 | F85: 0 | G85: 0.4 | H85: 60.198 | I85: 0 | J85: 1.016 | K85: 01:16:00 | P85: 60 | Q85: 60
A86: 1018 | B86: 17.5 | C86: 92 | D86: -0.83290025 | E86: 157 | F86: 2.8 | G86: 4.4 | H86: 60.198 | I86: 0 | J86: 1.016 | K86: 01:17:00 | Q86: 60
A87: 1018 | B87: 17.5 | C87: 92 | D87: -0.8321535 | E87: 157 | F87: 2.8 | G87: 4.4 | H87: 60.198 | I87: 0 | J87: 1.016 | K87: 01:18:00 | Q87: 60
A88: 1018 | B88: 17.5 | C88: 92 | D88: -0.704797056 | E88: 157 | F88: 2.4 | G88: 3.2 | H88: 61.214 | I88: 1.016 | J88: 2.032 | K88: 01:19:00 | Q88: 60
A89: 1018 | B89: 17.5 | C89: 92 | D89: -2.186726211 | E89: 157 | F89: 6.8 | G89: 4.8 | H89: 61.214 | I89: 0 | J89: 2.032 | K89: 01:20:00 | Q89: 60
A90: 1018 | B90: 17.5 | C90: 92 | D90: 0.05625 | E90: 135 | F90: 0 | G90: 6 | H90: 61.214 | I90: 0 | J90: 2.032 | K90: 01:21:00 | Q90: 60
A91: 1018 | B91: 17.5 | C91: 92 | D91: -0.702579222 | E91: 157 | F91: 2.4 | G91: 0.8 | H91: 61.214 | I91: 0 | J91: 2.032 | K91: 01:22:00 | P91: 60 | Q91: 60
A92: 1018 | B92: 17.5 | C92: 92 | D92: -1.878575281 | E92: 135 | F92: 6 | G92: 5.2 | H92: 61.214 | I92: 0 | J92: 2.032 | K92: 01:23:00 | Q92: 60
A93: 1018 | B93: 17.5 | C93: 92 | D93: -2.034655458 | E93: 135 | F93: 6.4 | G93: 5.2 | H93: 61.214 | I93: 0 | J93: 2.032 | K93: 01:24:00 | Q93: 60
A94: 1019 | B94: 17.5 | C94: 92 | D94: 0.059027778 | E94: 157 | F94: 0 | G94: 5.6 | H94: 61.214 | I94: 0 | J94: 2.032 | K94: 01:25:00 | Q94: 60
A95: 1019 | B95: 17.5 | C95: 92 | D95: 0.059722222 | E95: 135 | F95: 0 | G95: 0 | H95: 61.214 | I95: 0 | J95: 2.032 | K95: 01:26:00 | P95: 60 | Q95: 60
A96: 1019 | B96: 17.5 | C96: 92 | D96: 0.060416667 | E96: 135 | F96: 0 | G96: 0 | H96: 61.214 | I96: 0 | J96: 2.032 | K96: 01:27:00 | P96: 60 | Q96: 60
A97: 1019 | B97: 17.5 | C97: 92 | D97: 0.061111111 | E97: 202 | F97: 0 | G97: 3.2 | H97: 61.214 | I97: 0 | J97: 2.032 | K97: 01:28:00 | Q97: 60
A98: 1019 | B98: 17.5 | C98: 92 | D98: 0.061805556 | E98: 202 | F98: 0 | G98: 3.2 | H98: 61.214 | I98: 0 | J98: 2.032 | K98: 01:29:00 | Q98: 60
A99: 1019 | B99: 17.5 | C99: 92 | D99: -1.3293025 | E99: 157 | F99: 4.4 | G99: 2.4 | H99: 62.23 | I99: 1.016 | J99: 3.048 | K99: 01:30:00 | Q99: 60
A100: 1019 | B100: 17.5 | C100: 92 | D100: -1.328525861 | E100: 157 | F100: 4.4 | G100: 2.4 | H100: 62.23 | I100: 0 | J100: 3.048 | K100: 01:31:00 | Q100: 60
A101: 1019 | B101: 17.5 | C101: 92 | D101: -1.705498082 | E101: 157 | F101: 5.6 | G101: 3.2 | H101: 62.23 | I101: 0 | J101: 3.048 | K101: 01:32:00 | Q101: 60
A102: 1019 | B102: 17.5 | C102: 92 | D102: -2.582381337 | E102: 157 | F102: 8 | G102: 5.2 | H102: 62.23 | I102: 0 | J102: 3.048 | K102: 01:33:00 | Q102: 60
A103: 1019 | B103: 17.5 | C103: 92 | D103: -2.581565701 | E103: 157 | F103: 8 | G103: 5.2 | H103: 62.23 | I103: 0 | J103: 3.048 | K103: 01:34:00 | Q103: 60
A104: 1019 | B104: 17.5 | C104: 92 | D104: 0.065972222 | E104: 157 | F104: 0 | G104: 4 | H104: 62.23 | I104: 0 | J104: 3.048 | K104: 01:35:00 | Q104: 60
A105: 1019 | B105: 17.5 | C105: 92 | D105: 0.066666667 | E105: 157 | F105: 0 | G105: 2.8 | H105: 62.23 | I105: 0 | J105: 3.048 | K105: 01:36:00 | Q105: 60
A106: 1019 | B106: 17.5 | C106: 92 | D106: 0.067361111 | E106: 157 | F106: 0 | G106: 2.8 | H106: 62.23 | I106: 0 | J106: 3.048 | K106: 01:37:00 | Q106: 60
A107: 1019 | B107: 17.5 | C107: 92 | D107: 0.068055556 | E107: 157 | F107: 0 | G107: 2.8 | H107: 62.23 | I107: 0 | J107: 3.048 | K107: 01:38:00 | Q107: 60
A108: 1019 | B108: 17.5 | C108: 92 | D108: 0.06875 | E108: 157 | F108: 0 | G108: 2.8 | H108: 62.23 | I108: 0 | J108: 3.048 | K108: 01:39:00 | Q108: 60
A109: 1019 | B109: 17.5 | C109: 92 | D109: 0.069444444 | E109: 157 | F109: 0 | G109: 2.8 | H109: 63.5 | I109: 1.27 | J109: 4.318 | K109: 01:40:00 | Q109: 60
A110: 1019 | B110: 17.5 | C110: 92 | D110: 0.070138889 | E110: 157 | F110: 0 | G110: 2.8 | H110: 63.5 | I110: 0 | J110: 4.318 | K110: 01:41:00 | Q110: 60
A111: 1019 | B111: 17.5 | C111: 92 | D111: 0.070833333 | E111: 157 | F111: 0 | G111: 2.8 | H111: 63.5 | I111: 0 | J111: 4.318 | K111: 01:42:00 | Q111: 60
A112: 1019 | B112: 17.5 | C112: 92 | D112: 0.071527778 | E112: 157 | F112: 0 | G112: 2.8 | H112: 63.5 | I112: 0 | J112: 4.318 | K112: 01:43:00 | Q112: 60
A113: 1019 | B113: 17.5 | C113: 92 | D113: 0.072222222 | E113: 157 | F113: 0 | G113: 2.8 | H113: 63.5 | I113: 0 | J113: 4.318 | K113: 01:44:00 | Q113: 60
A114: 1019 | B114: 17.5 | C114: 92 | D114: -0.559160417 | E114: 157 | F114: 2 | G114: 2.4 | H114: 63.5 | I114: 0 | J114: 4.318 | K114: 01:45:00 | Q114: 60
A115: 1019 | B115: 17.5 | C115: 92 | D115: -0.558428611 | E115: 157 | F115: 2 | G115: 2.4 | H115: 63.5 | I115: 0 | J115: 4.318 | K115: 01:46:00 | Q115: 60
A116: 1019 | B116: 17.5 | C116: 92 | D116: -0.557696806 | E116: 157 | F116: 2 | G116: 2.4 | H116: 63.5 | I116: 0 | J116: 4.318 | K116: 01:47:00 | Q116: 60
A117: 1019 | B117: 17.5 | C117: 92 | D117: -2.164164412 | E117: 157 | F117: 6.8 | G117: 2.8 | H117: 63.5 | I117: 0 | J117: 4.318 | K117: 01:48:00 | Q117: 60
A118: 1019 | B118: 17.4 | C118: 92 | D118: -2.014601294 | E118: 202 | F118: 6.4 | G118: 2.4 | H118: 63.5 | I118: 0 | J118: 4.318 | K118: 01:49:00 | Q118: 60
A119: 1019 | B119: 17.4 | C119: 92 | D119: 0.076388889 | E119: 135 | F119: 0 | G119: 3.2 | H119: 63.5 | I119: 0 | J119: 4.318 | K119: 01:50:00 | Q119: 60
A120: 1019 | B120: 17.4 | C120: 92 | D120: 0.077083333 | E120: 157 | F120: 0 | G120: 0.8 | H120: 63.5 | I120: 0 | J120: 4.318 | K120: 01:51:00 | P120: 60 | Q120: 60
A121: 1019 | B121: 17.4 | C121: 92 | D121: -1.312216444 | E121: 157 | F121: 4.4 | G121: 4.8 | H121: 64.516 | I121: 1.016 | J121: 5.334 | K121: 01:52:00 | Q121: 60
A122: 1019 | B122: 17.4 | C122: 92 | D122: -2.436808524 | E122: 157 | F122: 7.6 | G122: 6.8 | H122: 64.516 | I122: 0 | J122: 5.334 | K122: 01:53:00 | Q122: 60
A123: 1019 | B123: 17.4 | C123: 92 | D123: -2.435996027 | E123: 135 | F123: 7.6 | G123: 4.8 | H123: 64.516 | I123: 0 | J123: 5.334 | K123: 01:54:00 | Q123: 60
A124: 1018 | B124: 17.4 | C124: 91 | D124: -1.85302777 | E124: 135 | F124: 6 | G124: 6.8 | H124: 64.516 | I124: 0 | J124: 5.334 | K124: 01:55:00 | Q124: 60
A125: 1018 | B125: 17.4 | C125: 91 | D125: 0.080555556 | E125: 135 | F125: 0 | G125: 0.4 | H125: 64.516 | I125: 0 | J125: 5.334 | K125: 01:56:00 | P125: 60 | Q125: 60
A126: 1018 | B126: 17.4 | C126: 91 | D126: 0.08125 | E126: 135 | F126: 0 | G126: 0 | H126: 64.516 | I126: 0 | J126: 5.334 | K126: 01:57:00 | P126: 60 | Q126: 60
A127: 1018 | B127: 17.4 | C127: 91 | D127: 0.081944444 | E127: 135 | F127: 0 | G127: 0 | H127: 64.516 | I127: 0 | J127: 5.334 | K127: 01:58:00 | P127: 60 | Q127: 60
A128: 1018 | B128: 17.4 | C128: 91 | D128: -2.29684635 | E128: 135 | F128: 7.2 | G128: 6.4 | H128: 64.516 | I128: 0 | J128: 5.334 | K128: 01:59:00 | Q128: 60
A129: 1018 | B129: 17.4 | C129: 91 | D129: -2.296037134 | E129: 135 | F129: 7.2 | G129: 6.4 | H129: 64.516 | I129: 0 | J129: 0 | K129: 02:00:00
A130: 1018 | B130: 17.3 | C130: 91 | D130: -1.318617107 | E130: 112 | F130: 4.8 | G130: 4.8 | H130: 64.516 | I130: 0 | J130: 0 | K130: 02:01:00
A131: 1018 | B131: 17.3 | C131: 91 | D131: -2.558727892 | E131: 157 | F131: 8 | G131: 4.8 | H131: 64.516 | I131: 0 | J131: 0 | K131: 02:02:00
A132: 1018 | B132: 17.3 | C132: 91 | D132: -2.557912256 | E132: 157 | F132: 8 | G132: 4.8 | H132: 64.516 | I132: 0 | J132: 0 | K132: 02:03:00
A133: 1018 | B133: 17.3 | C133: 91 | D133: 0.086111111 | E133: 157 | F133: 0 | G133: 2.8 | H133: 64.516 | I133: 0 | J133: 0 | K133: 02:04:00
A134: 1018 | B134: 17.3 | C134: 91 | D134: 0.086805556 | E134: 157 | F134: 0 | G134: 0 | H134: 64.516 | I134: 0 | J134: 0 | K134: 02:05:00 | P134: 60
A135: 1018 | B135: 17.3 | C135: 91 | D135: -0.922568 | E135: 157 | F135: 3.2 | G135: 1.2 | H135: 64.516 | I135: 0 | J135: 0 | K135: 02:06:00 | P135: 60
A136: 1018 | B136: 17.3 | C136: 91 | D136: 0.088194444 | E136: 157 | F136: 0 | G136: 1.2 | H136: 64.516 | I136: 0 | J136: 0 | K136: 02:07:00 | P136: 60
A137: 1018 | B137: 17.3 | C137: 91 | D137: -1.299790222 | E137: 135 | F137: 4.4 | G137: 4.4 | H137: 64.516 | I137: 0 | J137: 0 | K137: 02:08:00
A138: 1018 | B138: 17.3 | C138: 91 | D138: -2.288754188 | E138: 112 | F138: 7.2 | G138: 6.4 | H138: 65.532 | I138: 1.016 | J138: 1.016 | K138: 02:09:00 | Q138: 60
A139: 1019 | B139: 17.3 | C139: 91 | D139: -0.919551111 | E139: 112 | F139: 3.2 | G139: 3.2 | H139: 65.532 | I139: 0 | J139: 1.016 | K139: 02:10:00 | P139: =IF(G139<2,60,"") ->  | Q139: =IF(J139>0,60,"") -> 60
A140: 1019 | B140: 17.3 | C140: 91 | D140: -3.019319234 | E140: 135 | F140: 9.6 | G140: 4 | H140: 65.532 | I140: 0 | J140: 1.016 | K140: 02:11:00 | Q140: 60
A141: 1019 | B141: 17.3 | C141: 91 | D141: -3.01849223 | E141: 135 | F141: 9.6 | G141: 4 | H141: 65.532 | I141: 0 | J141: 1.016 | K141: 02:12:00 | Q141: 60
A142: 1019 | B142: 17.3 | C142: 91 | D142: 0.092361111 | E142: 157 | F142: 0 | G142: 4.4 | H142: 65.532 | I142: 0 | J142: 1.016 | K142: 02:13:00 | Q142: 60
A143: 1019 | B143: 17.3 | C143: 91 | D143: 0.093055556 | E143: 157 | F143: 0 | G143: 4.4 | H143: 65.532 | I143: 0 | J143: 1.016 | K143: 02:14:00 | Q143: 60
A144: 1019 | B144: 17.3 | C144: 91 | D144: 0.09375 | E144: 157 | F144: 0 | G144: 4.4 | H144: 65.532 | I144: 0 | J144: 1.016 | K144: 02:15:00 | Q144: 60
A145: 1019 | B145: 17.3 | C145: 91 | D145: 0.094444444 | E145: 157 | F145: 0 | G145: 4.4 | H145: 65.532 | I145: 0 | J145: 1.016 | K145: 02:16:00 | Q145: 60
A146: 1019 | B146: 17.3 | C146: 91 | D146: 0.095138889 | E146: 135 | F146: 0 | G146: 0 | H146: 65.532 | I146: 0 | J146: 1.016 | K146: 02:17:00 | P146: 60 | Q146: 60
A147: 1019 | B147: 17.3 | C147: 91 | D147: 0.095833333 | E147: 135 | F147: 0 | G147: 0 | H147: 65.532 | I147: 0 | J147: 1.016 | K147: 02:18:00 | P147: 60 | Q147: 60
A148: 1019 | B148: 17.3 | C148: 91 | D148: 0.096527778 | E148: 135 | F148: 0 | G148: 0 | H148: 65.532 | I148: 0 | J148: 1.016 | K148: 02:19:00 | P148: 60 | Q148: 60
A149: 1019 | B149: 17.3 | C149: 91 | D149: 0.097222222 | E149: 135 | F149: 0 | G149: 0 | H149: 65.532 | I149: 0 | J149: 1.016 | K149: 02:20:00 | P149: 60 | Q149: 60
A150: 1019 | B150: 17.3 | C150: 91 | D150: 0.097916667 | E150: 135 | F150: 0 | G150: 0 | H150: 65.532 | I150: 0 | J150: 1.016 | K150: 02:21:00 | P150: 60 | Q150: 60
A151: 1019 | B151: 17.3 | C151: 91 | D151: 0.098611111 | E151: 157 | F151: 0 | G151: 0 | H151: 65.532 | I151: 0 | J151: 1.016 | K151: 02:22:00 | P151: 60 | Q151: 60
A152: 1019 | B152: 17.3 | C152: 91 | D152: 0.099305556 | E152: 157 | F152: 0 | G152: 0 | H152: 65.532 | I152: 0 | J152: 1.016 | K152: 02:23:00 | P152: 60 | Q152: 60
A153: 1019 | B153: 17.4 | C153: 91 | D153: 0.1 | E153: 157 | F153: 0 | G153: 0 | H153: 65.532 | I153: 0 | J153: 1.016 | K153: 02:24:00 | P153: 60 | Q153: 60
A154: 1020 | B154: 17.4 | C154: 91 | D154: 0.100694444 | E154: 135 | F154: 0 | G154: 3.6 | H154: 65.532 | I154: 0 | J154: 1.016 | K154: 02:25:00 | Q154: 60
A155: 1020 | B155: 17.4 | C155: 91 | D155: -1.033592611 | E155: 135 | F155: 3.6 | G155: 4.4 | H155: 65.532 | I155: 0 | J155: 1.016 | K155: 02:26:00 | Q155: 60
A156: 1020 | B156: 17.4 | C156: 91 | D156: -1.032830917 | E156: 157 | F156: 3.6 | G156: 2.8 | H156: 65.532 | I156: 0 | J156: 1.016 | K156: 02:27:00 | Q156: 60
A157: 1020 | B157: 17.4 | C157: 91 | D157: 0.102777778 | E157: 157 | F157: 0 | G157: 2.4 | H157: 65.532 | I157: 0 | J157: 1.016 | K157: 02:28:00 | Q157: 60
A158: 1020 | B158: 17.4 | C158: 91 | D158: -2.272569862 | E158: 157 | F158: 7.2 | G158: 3.6 | H158: 65.532 | I158: 0 | J158: 1.016 | K158: 02:29:00 | Q158: 60
A159: 1020 | B159: 17.4 | C159: 91 | D159: -0.7783875 | E159: 112 | F159: 2.8 | G159: 2.8 | H159: 65.532 | I159: 0 | J159: 1.016 | K159: 02:30:00 | Q159: 60
A160: 1020 | B160: 17.4 | C160: 91 | D160: 0.104861111 | E160: 112 | F160: 0 | G160: 1.6 | H160: 65.532 | I160: 0 | J160: 1.016 | K160: 02:31:00 | P160: 60 | Q160: 60
A161: 1020 | B161: 17.4 | C161: 91 | D161: -1.823488462 | E161: 157 | F161: 6 | G161: 6.4 | H161: 65.532 | I161: 0 | J161: 1.016 | K161: 02:32:00 | Q161: 60
A162: 1020 | B162: 17.4 | C162: 91 | D162: 0.10625 | E162: 157 | F162: 0 | G162: 2.8 | H162: 65.532 | I162: 0 | J162: 1.016 | K162: 02:33:00 | Q162: 60
A163: 1020 | B163: 17.4 | C163: 91 | D163: -1.279597611 | E163: 135 | F163: 4.4 | G163: 3.2 | H163: 65.532 | I163: 0 | J163: 1.016 | K163: 02:34:00 | Q163: 60
A164: 1020 | B164: 17.4 | C164: 91 | D164: -1.278820972 | E164: 112 | F164: 4.4 | G164: 4 | H164: 65.532 | I164: 0 | J164: 1.016 | K164: 02:35:00 | Q164: 60
A165: 1020 | B165: 17.4 | C165: 91 | D165: -1.278044333 | E165: 112 | F165: 4.4 | G165: 4 | H165: 65.532 | I165: 0 | J165: 1.016 | K165: 02:36:00 | Q165: 60
A166: 1020 | B166: 17.4 | C166: 91 | D166: -1.277267694 | E166: 112 | F166: 4.4 | G166: 4 | H166: 65.532 | I166: 0 | J166: 1.016 | K166: 02:37:00 | Q166: 60
A167: 1020 | B167: 17.4 | C167: 91 | D167: -1.276491056 | E167: 112 | F167: 4.4 | G167: 4 | H167: 65.532 | I167: 0 | J167: 1.016 | K167: 02:38:00 | Q167: 60
A168: 1020 | B168: 17.4 | C168: 91 | D168: -1.275714417 | E168: 112 | F168: 4.4 | G168: 4 | H168: 65.532 | I168: 0 | J168: 1.016 | K168: 02:39:00 | Q168: 60
A169: 1019 | B169: 17.4 | C169: 91 | D169: -1.274937778 | E169: 112 | F169: 4.4 | G169: 4 | H169: 65.532 | I169: 0 | J169: 1.016 | K169: 02:40:00 | Q169: 60
A170: 1019 | B170: 17.4 | C170: 91 | D170: 0.111805556 | E170: 135 | F170: 0 | G170: 0.8 | H170: 65.532 | I170: 0 | J170: 1.016 | K170: 02:41:00 | P170: 60 | Q170: 60
A171: 1019 | B171: 17.4 | C171: 91 | D171: -0.5174475 | E171: 135 | F171: 2 | G171: 3.6 | H171: 65.532 | I171: 0 | J171: 1.016 | K171: 02:42:00 | Q171: 60
A172: 1019 | B172: 17.4 | C172: 91 | D172: -0.516715694 | E172: 135 | F172: 2 | G172: 3.6 | H172: 65.532 | I172: 0 | J172: 1.016 | K172: 02:43:00 | Q172: 60
A173: 1019 | B173: 17.4 | C173: 91 | D173: 0.113888889 | E173: 135 | F173: 0 | G173: 1.6 | H173: 65.532 | I173: 0 | J173: 1.016 | K173: 02:44:00 | P173: 60 | Q173: 60
A174: 1019 | B174: 17.4 | C174: 91 | D174: -2.394558673 | E174: 135 | F174: 7.6 | G174: 4.4 | H174: 66.548 | I174: 1.016 | J174: 2.032 | K174: 02:45:00 | Q174: 60
A175: 1019 | B175: 17.4 | C175: 91 | D175: -2.393746176 | E175: 135 | F175: 7.6 | G175: 4.4 | H175: 66.548 | I175: 0 | J175: 2.032 | K175: 02:46:00 | Q175: 60
A176: 1019 | B176: 17.4 | C176: 91 | D176: -2.392933679 | E176: 135 | F176: 7.6 | G176: 4.4 | H176: 66.548 | I176: 0 | J176: 2.032 | K176: 02:47:00 | Q176: 60
A177: 1019 | B177: 17.4 | C177: 91 | D177: 0.116666667 | E177: 135 | F177: 0 | G177: 0 | H177: 66.548 | I177: 0 | J177: 2.032 | K177: 02:48:00 | P177: 60 | Q177: 60
A178: 1019 | B178: 17.4 | C178: 91 | D178: 0.117361111 | E178: 135 | F178: 0 | G178: 0 | H178: 66.548 | I178: 0 | J178: 2.032 | K178: 02:49:00 | P178: 60 | Q178: 60
A179: 1019 | B179: 17.4 | C179: 91 | D179: 0.118055556 | E179: 135 | F179: 0 | G179: 0 | H179: 66.548 | I179: 0 | J179: 2.032 | K179: 02:50:00 | P179: 60 | Q179: 60
A180: 1019 | B180: 17.4 | C180: 91 | D180: 0.11875 | E180: 135 | F180: 0 | G180: 0 | H180: 66.548 | I180: 0 | J180: 2.032 | K180: 02:51:00 | P180: 60 | Q180: 60
A181: 1019 | B181: 17.4 | C181: 91 | D181: 0.119444444 | E181: 135 | F181: 0 | G181: 0 | H181: 66.548 | I181: 0 | J181: 2.032 | K181: 02:52:00 | P181: 60 | Q181: 60
A182: 1019 | B182: 17.4 | C182: 91 | D182: 0.120138889 | E182: 135 | F182: 0 | G182: 0 | H182: 66.548 | I182: 0 | J182: 2.032 | K182: 02:53:00 | P182: 60 | Q182: 60
A183: 1019 | B183: 17.4 | C183: 91 | D183: 0.120833333 | E183: 135 | F183: 0 | G183: 0 | H183: 66.548 | I183: 0 | J183: 2.032 | K183: 02:54:00 | P183: 60 | Q183: 60
A184: 1019 | B184: 17.4 | C184: 91 | D184: -1.276200313 | E184: 135 | F184: 4.8 | G184: 2.4 | H184: 66.548 | I184: 0 | J184: 2.032 | K184: 02:55:00 | Q184: 60
A185: 1019 | B185: 17.4 | C185: 91 | D185: -1.275414817 | E185: 135 | F185: 4.8 | G185: 2.4 | H185: 66.548 | I185: 0 | J185: 2.032 | K185: 02:56:00 | Q185: 60
A186: 1019 | B186: 17.4 | C186: 91 | D186: -1.274629321 | E186: 135 | F186: 4.8 | G186: 2.4 | H186: 66.548 | I186: 0 | J186: 2.032 | K186: 02:57:00 | Q186: 60
A187: 1019 | B187: 17.4 | C187: 91 | D187: -1.009218389 | E187: 135 | F187: 3.6 | G187: 2 | H187: 66.548 | I187: 0 | J187: 2.032 | K187: 02:58:00 | Q187: 60
A188: 1019 | B188: 17.4 | C188: 91 | D188: -1.008456694 | E188: 135 | F188: 3.6 | G188: 2 | H188: 66.548 | I188: 0 | J188: 2.032 | K188: 02:59:00 | Q188: 60
A189: 1019 | B189: 17.4 | C189: 91 | D189: 0.125 | E189: 157 | F189: 0 | G189: 4.8 | H189: 66.548 | I189: 0 | J189: 0 | K189: 03:00:00
A190: 1019 | B190: 17.4 | C190: 91 | D190: 0.125694444 | E190: 157 | F190: 0 | G190: 2.4 | H190: 66.548 | I190: 0 | J190: 0 | K190: 03:01:00
A191: 1019 | B191: 17.4 | C191: 91 | D191: 0.126388889 | E191: 157 | F191: 0 | G191: 0 | H191: 66.548 | I191: 0 | J191: 0 | K191: 03:02:00 | P191: 60
A192: 1019 | B192: 17.4 | C192: 91 | D192: 0.127083333 | E192: 157 | F192: 0 | G192: 0 | H192: 66.548 | I192: 0 | J192: 0 | K192: 03:03:00 | P192: 60
A193: 1019 | B193: 17.4 | C193: 91 | D193: 0.127777778 | E193: 157 | F193: 0 | G193: 0 | H193: 66.548 | I193: 0 | J193: 0 | K193: 03:04:00 | P193: 60
A194: 1019 | B194: 17.4 | C194: 91 | D194: 0.128472222 | E194: 157 | F194: 0 | G194: 0 | H194: 66.548 | I194: 0 | J194: 0 | K194: 03:05:00 | P194: 60
A195: 1019 | B195: 17.4 | C195: 91 | D195: 0.129166667 | E195: 157 | F195: 0 | G195: 0 | H195: 67.564 | I195: 1.016 | J195: 1.016 | K195: 03:06:00 | P195: 60 | Q195: 60
A196: 1019 | B196: 17.4 | C196: 91 | D196: 0.129861111 | E196: 157 | F196: 0 | G196: 0 | H196: 67.564 | I196: 0 | J196: 1.016 | K196: 03:07:00 | P196: 60 | Q196: 60
A197: 1019 | B197: 17.4 | C197: 91 | D197: 0.130555556 | E197: 112 | F197: 0 | G197: 2 | H197: 67.564 | I197: 0 | J197: 1.016 | K197: 03:08:00 | Q197: 60
A198: 1019 | B198: 17.4 | C198: 91 | D198: -0.6234765 | E198: 112 | F198: 2.4 | G198: 2 | H198: 67.564 | I198: 0 | J198: 1.016 | K198: 03:09:00 | Q198: 60
A199: 1019 | B199: 17.4 | C199: 91 | D199: 0.131944444 | E199: 112 | F199: 0 | G199: 1.2 | H199: 67.564 | I199: 0 | J199: 1.016 | K199: 03:10:00 | P199: 60 | Q199: 60
A200: 1019 | B200: 17.4 | C200: 91 | D200: -0.621997944 | E200: 112 | F200: 2.4 | G200: 0 | H200: 67.564 | I200: 0 | J200: 1.016 | K200: 03:11:00 | P200: 60 | Q200: 60
A201: 1019 | B201: 17.4 | C201: 91 | D201: -0.621258667 | E201: 112 | F201: 2.4 | G201: 0 | H201: 67.564 | I201: 0 | J201: 1.016 | K201: 03:12:00 | P201: 60 | Q201: 60
... 1251 more rows

Sheet Juin_2018
AK1: http://www.meteociel.fr/climatologie/villes.php?code=7306&mois=05&annee=2018 | AR1: http://www.ephemeride.com/calendrier/solaire/19/horaires-du-soleil.html
F3: Hauteur de pluie en mm | J3: Temps de précipitations par quart de journée | AG3: Soleil | AK3: http://info.sio2.be/kpz/3/1.php | AS3: T° mini | AU3: T¨maxi | AW3: Vent maxi
C5: Juin_2018 | F5: =SUM($F11:$F71) -> 45.974 | H5: =SUM($H11:$H71) -> 0.5222222222 | J5: =SUM(J11:J71) -> 0.2444444444 | L5: =SUM(L11:L71) -> 0.1861111111 | N5: =SUM(N11:N71) -> 0.0375 | P5: =SUM(P11:P71) -> 0.05416666667 | S5: Températures | AB5: Vitesse du vent | AG5: =SUM(AG11:AG71) -> 7.059722222
C7: Jour maxi | F7: =VLOOKUP($F$9,$F$11:$AK$71,31,0) -> 00:00:00 | H7: =VLOOKUP($H$9,$H$11:$AK$71,29,0) -> 00:00:00 | J7: Pluie AM | L7: Pluie AM | N7: Pluie AP | P7: Pluie AP | S7: =MIN($S$11:$S$71) -> 13.5 | U7: =VLOOKUP($S$7,$S$11:$AK$71,19,0) -> 2018-06-02 | W7: =MAX(W11:W69) -> 34.9 | Y7: =VLOOKUP($W$7,$W$11:$AK$71,15,0) -> 2018-06-20 | AB7: =MAX(AB11:AB69) -> 42.8 | AD7: =VLOOKUP(AB7,$AB$11:$AK$71,10,0) -> 2018-06-15 | AG7: =VLOOKUP($AG$9,$AG$11:$AK$71,5,0) -> 2018-06-02
C9: Date | F9: =MAX($F$11:$F$71) -> 15.748 | H9: =MAX($H$11:H$71) -> 0.1791666667 | J9: de 0 à 6h59 | L9: 7h à 11h59 | N9: 12h à 18h59 | P9: 19h à 24h00 | S9: Mini | U9: =VLOOKUP(S7,S11:U$71,3,0) -> 05:50:00 | W9: Maxi | Y9: =VLOOKUP(W7,W11:Y$71,3,0) -> 15:49:00 | AB9: Maxi | AG9: =MAX($AG$11:$AG$71) -> 0.475
C11: =PROPER(TEXT(D11,"JJJJ")) -> Vendredi | D11: 2018-06-01 | F11: 0 | H11: 00:00:00 | J11: 00:00:00 | L11: 00:00:00 | N11: 00:00:00 | P11: 00:00:00 | S11: 16.1 | U11: 06:15:00 | W11: 23.8 | Y11: 18:34:00 | AB11: 19.2 | AD11: 14:17:00 | AG11: 06:48:00 | AK11: =D11 -> 2018-06-01 | AL11: =$C11 -> Vendredi
C13: =PROPER(TEXT(D13,"JJJJ")) -> Samedi | D13: =$D11+1 -> 2018-06-02 | F13: 0 | H13: 00:00:00 | J13: 00:00:00 | L13: 00:00:00 | N13: 00:00:00 | P13: 00:00:00 | S13: 13.5 | U13: 05:50:00 | W13: 29.8 | Y13: 15:04:00 | AB13: 22.4 | AD13: 18:45:00 | AG13: 11:24:00 | AK13: =D13 -> 2018-06-02 | AL13: =$C13 -> Samedi
C15: =PROPER(TEXT(D15,"JJJJ")) -> Dimanche | D15: =$D13+1 -> 2018-06-03 | F15: 0 | H15: 00:00:00 | J15: 00:00:00 | L15: 00:00:00 | N15: 00:00:00 | P15: 00:00:00 | S15: 16.5 | U15: 04:31:00 | W15: 30.6 | Y15: 13:11:00 | AB15: 20 | AD15: 18:20:00 | AG15: 07:48:00 | AK15: =D15 -> 2018-06-03 | AL15: =$C15 -> Dimanche
C17: =PROPER(TEXT(D17,"JJJJ")) -> Lundi | D17: =$D15+1 -> 2018-06-04 | F17: 1.016 | H17: 00:55:00 | J17: 00:00:00 | L17: 00:55:00 | N17: 00:00:00 | P17: 00:00:00 | S17: 16.5 | U17: 05:57:00 | W17: 28.5 | Y17: 14:18:00 | AB17: 26.4 | AD17: 18:27:00 | AG17: 07:12:00 | AK17: =D17 -> 2018-06-04 | AL17: =$C17 -> Lundi
C19: =PROPER(TEXT(D19,"JJJJ")) -> Mardi | D19: =$D17+1 -> 2018-06-05 | F19: 0 | H19: 00:00:00 | J19: 00:00:00 | L19: 00:00:00 | N19: 00:00:00 | P19: 00:00:00 | S19: 16.9 | U19: 03:02:00 | W19: 26.7 | Y19: 13:02:00 | AB19: 31.6 | AD19: 19:32:00 | AG19: 06:54:00 | AK19: =D19 -> 2018-06-05 | AL19: =$C19 -> Mardi
C21: =PROPER(TEXT(D21,"JJJJ")) -> Mercredi | D21: =$D19+1 -> 2018-06-06 | F21: 2.032 | H21: 01:21:00 | J21: 00:00:00 | L21: 00:21:00 | N21: 00:01:00 | P21: 00:59:00 | S21: 17.5 | U21: 21:47:00 | W21: 24.5 | Y21: 15:28:00 | AB21: 19.2 | AD21: 17:15:00 | AG21: 01:42:00 | AK21: =D21 -> 2018-06-06 | AL21: =$C21 -> Mercredi
C23: =PROPER(TEXT(D23,"JJJJ")) -> Jeudi | D23: =$D21+1 -> 2018-06-07 | F23: 0 | H23: 00:01:00 | J23: 00:00:00 | L23: 00:00:00 | N23: 00:00:00 | P23: 00:01:00 | S23: 16.5 | U23: 23:58:00 | W23: 27 | Y23: 14:30:00 | AB23: 22.4 | AD23: 16:17:00 | AG23: 09:30:00 | AK23: =D23 -> 2018-06-07 | AL23: =$C23 -> Jeudi
C25: =PROPER(TEXT(D25,"JJJJ")) -> Vendredi | D25: =$D23+1 -> 2018-06-08 | F25: 0 | H25: 00:00:00 | J25: 00:00:00 | L25: 00:00:00 | N25: 00:00:00 | P25: 00:00:00 | S25: 14.8 | U25: 06:14:00 | W25: 32.1 | Y25: 13:38:00 | AB25: 16.8 | AD25: 16:01:00 | AG25: 10:30:00 | AK25: =D25 -> 2018-06-08 | AL25: =$C25 -> Vendredi
C27: =PROPER(TEXT(D27,"JJJJ")) -> Samedi | D27: =$D25+1 -> 2018-06-09 | F27: 0 | H27: 00:00:00 | J27: 00:00:00 | L27: 00:00:00 | N27: 00:00:00 | P27: 00:00:00 | S27: 18 | U27: 04:55:00 | W27: 29 | Y27: 11:48:00 | AB27: 26.8 | AD27: 17:59:00 | AF27: 6.503333333 | AG27: 08:24:00 | AK27: =D27 -> 2018-06-09 | AL27: =$C27 -> Samedi
C29: =PROPER(TEXT(D29,"JJJJ")) -> Dimanche | D29: =$D27+1 -> 2018-06-10 | F29: 13.716 | H29: 02:21:00 | J29: 02:21:00 | L29: 00:00:00 | N29: 00:00:00 | P29: 00:00:00 | S29: 15.7 | U29: 03:13:00 | W29: 27.3 | Y29: 11:43:00 | AB29: 24 | AD29: 15:41:00 | AF29: 7.538611111 | AG29: 11:00:00 | AK29: =D29 -> 2018-06-10 | AL29: =$C29 -> Dimanche
AN30: Décembre
C31: =PROPER(TEXT(D31,"JJJJ")) -> Lundi | D31: =$D29+1 -> 2018-06-11 | F31: 15.748 | H31: 04:18:00 | J31: 00:00:00 | L31: 03:12:00 | N31: 00:53:00 | P31: 00:13:00 | S31: 15.7 | U31: 09:30:00 | W31: 19.2 | Y31: 14:18:00 | AB31: 33.6 | AD31: 19:17:00 | AG31: 00:00:00 | AK31: =D31 -> 2018-06-11 | AL31: =$C31 -> Lundi
C33: =PROPER(TEXT(D33,"JJJJ")) -> Mardi | D33: =$D31+1 -> 2018-06-12 | F33: 0 | H33: 00:00:00 | J33: 00:00:00 | L33: 00:00:00 | N33: 00:00:00 | P33: 00:00:00 | S33: 16.3 | U33: 05:31:00 | W33: 25.5 | Y33: 16:51:00 | AB33: 27.2 | AD33: 20:07:00 | AG33: 06:06:00 | AK33: =D33 -> 2018-06-12 | AL33: =$C33 -> Mardi
C35: =PROPER(TEXT(D35,"JJJJ")) -> Mercredi | D35: =$D33+1 -> 2018-06-13 | F35: 0 | H35: 00:00:00 | J35: 00:00:00 | L35: 00:00:00 | N35: 00:00:00 | P35: 00:00:00 | S35: 13.5 | U35: 06:12:00 | W35: 24.6 | Y35: 11:48:00 | AB35: 37.2 | AD35: 17:14:00 | AG35: 09:00:00 | AK35: =D35 -> 2018-06-13 | AL35: =$C35 -> Mercredi
C37: =PROPER(TEXT(D37,"JJJJ")) -> Jeudi | D37: =$D35+1 -> 2018-06-14 | F37: 1.016 | H37: 00:05:00 | J37: 00:00:00 | L37: 00:00:00 | N37: 00:00:00 | P37: 00:05:00 | S37: 13.7 | U37: 06:07:00 | W37: 23 | Y37: 14:31:00 | AB37: 28 | AD37: 18:36:00 | AG37: 05:18:00 | AK37: =D37 -> 2018-06-14 | AL37: =$C37 -> Jeudi
C39: =PROPER(TEXT(D39,"JJJJ")) -> Vendredi | D39: =$D37+1 -> 2018-06-15 | F39: 12.446 | H39: 03:31:00 | J39: 03:31:00 | L39: 00:00:00 | N39: 00:00:00 | P39: 00:00:00 | S39: 15.9 | U39: 05:23:00 | W39: 26.2 | Y39: 13:11:00 | AB39: 42.8 | AD39: 17:56:00 | AG39: 09:06:00 | AK39: =D39 -> 2018-06-15 | AL39: =$C39 -> Vendredi
C41: =PROPER(TEXT(D41,"JJJJ")) -> Samedi | D41: =$D39+1 -> 2018-06-16 | F41: 0 | H41: 00:00:00 | J41: 00:00:00 | L41: 00:00:00 | N41: 00:00:00 | P41: 00:00:00 | S41: 14.9 | U41: 06:00:00 | W41: 22.6 | Y41: 10:43:00 | AB41: 38.8 | AD41: 14:07:00 | AG41: 07:36:00 | AK41: =D41 -> 2018-06-16 | AL41: =$C41 -> Samedi
C43: =PROPER(TEXT(D43,"JJJJ")) -> Dimanche | D43: =$D41+1 -> 2018-06-17 | F43: 0 | H43: 00:00:00 | J43: 00:00:00 | L43: 00:00:00 | N43: 00:00:00 | P43: 00:00:00 | S43: 14.2 | U43: 06:29:00 | W43: 25.5 | Y43: 11:31:00 | AB43: 32 | AD43: 16:39:00 | AG43: 09:42:00 | AK43: =D43 -> 2018-06-17 | AL43: =$C43 -> Dimanche
C45: =PROPER(TEXT(D45,"JJJJ")) -> Lundi | D45: =$D43+1 -> 2018-06-18 | F45: 0 | H45: 00:00:00 | J45: 00:00:00 | L45: 00:00:00 | N45: 00:00:00 | P45: 00:00:00 | S45: 16.3 | U45: 23:49:00 | W45: 21.3 | Y45: 14:12:00 | AB45: 24.4 | AD45: 16:41:00 | AG45: 10:30:00 | AK45: =D45 -> 2018-06-18 | AL45: =$C45 -> Lundi
C47: =PROPER(TEXT(D47,"JJJJ")) -> Mardi | D47: =$D45+1 -> 2018-06-19 | F47: 0 | H47: 00:00:00 | J47: 00:00:00 | L47: 00:00:00 | N47: 00:00:00 | P47: 00:00:00 | S47: 14 | U47: 06:07:00 | W47: 29 | Y47: 18:57:00 | AB47: 26.4 | AD47: 16:56:00 | AG47: 10:32:00 | AK47: =D47 -> 2018-06-19 | AL47: =$C47 -> Mardi
C49: =PROPER(TEXT(D49,"JJJJ")) -> Mercredi | D49: =$D47+1 -> 2018-06-20 | F49: 0 | H49: 00:00:00 | J49: 00:00:00 | L49: 00:00:00 | N49: 00:00:00 | P49: 00:00:00 | S49: 17.2 | U49: 06:20:00 | W49: 34.9 | Y49: 15:49:00 | AB49: 23.6 | AD49: 14:22:00 | AG49: 09:36:00 | AK49: =D49 -> 2018-06-20 | AL49: =$C49 -> Mercredi
C51: =PROPER(TEXT(D51,"JJJJ")) -> Jeudi | D51: =$D49+1 -> 2018-06-21 | F51: 0 | H51: 00:00:00 | J51: 00:00:00 | L51: 00:00:00 | N51: 00:00:00 | P51: 00:00:00 | S51: 17.1 | U51: 23:59:00 | W51: 28.6 | Y51: 17:25:00 | AB51: 32.4 | AD51: 11:12:00 | AG51: 10:48:00 | AK51: =D51 -> 2018-06-21 | AL51: =$C51 -> Jeudi
C53: =PROPER(TEXT(D53,"JJJJ")) -> Vendredi | D53: =$D51+1 -> 2018-06-22 | AK53: =D53 -> 2018-06-22 | AL53: =$C53 -> Vendredi
C55: =PROPER(TEXT(D55,"JJJJ")) -> Samedi | D55: =$D53+1 -> 2018-06-23 | AK55: =D55 -> 2018-06-23 | AL55: =$C55 -> Samedi
C57: =PROPER(TEXT(D57,"JJJJ")) -> Dimanche | D57: =$D55+1 -> 2018-06-24 | AK57: =D57 -> 2018-06-24 | AL57: =$C57 -> Dimanche
C59: =PROPER(TEXT(D59,"JJJJ")) -> Lundi | D59: =$D57+1 -> 2018-06-25 | AK59: =D59 -> 2018-06-25 | AL59: =$C59 -> Lundi
C61: =PROPER(TEXT(D61,"JJJJ")) -> Mardi | D61: =$D59+1 -> 2018-06-26 | AK61: =D61 -> 2018-06-26 | AL61: =$C61 -> Mardi
C63: =PROPER(TEXT(D63,"JJJJ")) -> Mercredi | D63: =$D61+1 -> 2018-06-27 | AK63: =D63 -> 2018-06-27 | AL63: =$C63 -> Mercredi
C65: =PROPER(TEXT(D65,"JJJJ")) -> Jeudi | D65: =$D63+1 -> 2018-06-28 | AK65: =D65 -> 2018-06-28 | AL65: =$C65 -> Jeudi
C67: =PROPER(TEXT(D67,"JJJJ")) -> Vendredi | D67: =$D65+1 -> 2018-06-29 | AK67: =D67 -> 2018-06-29 | AL67: =$C67 -> Vendredi
C69: =PROPER(TEXT(D69,"JJJJ")) -> Samedi | D69: =$D67+1 -> 2018-06-30 | AK69: =D69 -> 2018-06-30 | AL69: =$C69 -> Samedi
